[Event "*** Titled Tuesday Blitz"]
[Site "Chess.com"]
[Date "2020.12.29"]
[Round "3"]
[White "baag"]
[Black "AniJak"]
[Result "1/2-1/2"]
[WhiteElo "2719"]
[BlackElo "2358"]
[TimeControl "180+1"]
[EndTime "10:29:19 PST"]
[Termination "Game drawn by repetition"]

1. d4 {[%clk 0:03:00.9]} 1... Nf6 {[%clk 0:02:59.1]} 2. c4 {[%clk 0:03:01.1]}
2... c6 {[%clk 0:02:58.5]} 3. Nc3 {[%clk 0:03:00.9]} 3... d5 {[%clk 0:02:58.3]}
4. e3 {[%clk 0:03:01.5]} 4... e6 {[%clk 0:02:57.9]} 5. Nf3 {[%clk 0:03:01.9]}
5... Nbd7 {[%clk 0:02:58]} 6. Qc2 {[%clk 0:03:01.1]} 6... Bd6 {[%clk 0:02:55.9]}
7. Bd3 {[%clk 0:03:01.6]} 7... dxc4 {[%clk 0:02:54.6]} 8. Bxc4 {[%clk
0:03:02.5]} 8... b5 {[%clk 0:02:49]} 9. Be2 {[%clk 0:03:03]} 9... Bb7 {[%clk
0:02:46.9]} 10. O-O {[%clk 0:03:03.6]} 10... a6 {[%clk 0:02:45.7]} 11. Rd1
{[%clk 0:03:04]} 11... Qe7 {[%clk 0:02:44.4]} 12. e4 {[%clk 0:03:03.9]} 12... e5
{[%clk 0:02:43.8]} 13. h3 {[%clk 0:03:04.5]} 13... O-O {[%clk 0:02:39.9]} 14.
dxe5 {[%clk 0:03:04]} 14... Nxe5 {[%clk 0:02:39.5]} 15. Nd4 {[%clk 0:03:04.7]}
15... g6 {[%clk 0:02:27]} 16. f4 {[%clk 0:03:03.4]} 16... Ned7 {[%clk
0:02:15.9]} 17. e5 {[%clk 0:03:02.4]} 17... Nxe5 {[%clk 0:02:16.2]} 18. fxe5
{[%clk 0:03:03.3]} 18... Qxe5 {[%clk 0:02:16.2]} 19. Nf3 {[%clk 0:03:03.9]}
19... Qg3 {[%clk 0:02:10.1]} 20. Bg5 {[%clk 0:02:52.9]} 20... Nh5 {[%clk
0:01:52.7]} 21. Bh4 {[%clk 0:02:51.2]} 21... Bc5+ {[%clk 0:01:51.7]} 22. Kh1
{[%clk 0:02:45.9]} 22... Qc7 {[%clk 0:01:46.3]} 23. Ne4 {[%clk 0:02:44.8]} 23...
Bb6 {[%clk 0:01:36.8]} 24. Nf6+ {[%clk 0:02:43.3]} 24... Nxf6 {[%clk 0:01:35.5]}
25. Bxf6 {[%clk 0:02:44.2]} 25... Rfe8 {[%clk 0:01:33.7]} 26. Qd2 {[%clk
0:02:16.4]} 26... Re6 {[%clk 0:01:26]} 27. Bc3 {[%clk 0:02:15.1]} 27... Bc5
{[%clk 0:01:22.6]} 28. Ng5 {[%clk 0:02:10.6]} 28... Re7 {[%clk 0:01:17]} 29. Bf3
{[%clk 0:02:06]} 29... Be3 {[%clk 0:01:09.9]} 30. Qd3 {[%clk 0:01:57.6]} 30...
Bxg5 {[%clk 0:01:09.3]} 31. Qd4 {[%clk 0:01:57.3]} 31... f6 {[%clk 0:01:07.7]}
32. h4 {[%clk 0:01:56.5]} 32... c5 {[%clk 0:01:03.8]} 33. Qg4 {[%clk 0:01:46.9]}
33... Bxf3 {[%clk 0:01:03.1]} 34. Qxf3 {[%clk 0:01:47.8]} 34... Rf8 {[%clk
0:00:57.4]} 35. hxg5 {[%clk 0:01:39.6]} 35... fxg5 {[%clk 0:00:58.3]} 36. Qg4
{[%clk 0:01:35]} 36... Rf4 {[%clk 0:00:51.9]} 37. Qxg5 {[%clk 0:01:14.7]} 37...
Rf5 {[%clk 0:00:52]} 38. Qg4 {[%clk 0:00:49.4]} 38... Rh5+ {[%clk 0:00:49.8]}
39. Qxh5 {[%clk 0:00:49.8]} 39... gxh5 {[%clk 0:00:50.7]} 40. Rd5 {[%clk
0:00:50.2]} 40... h6 {[%clk 0:00:38.2]} 41. Rxh5 {[%clk 0:00:47.9]} 41... Kh7
{[%clk 0:00:35.6]} 42. Rf1 {[%clk 0:00:48]} 42... Rf7 {[%clk 0:00:31.6]} 43. Re1
{[%clk 0:00:44.6]} 43... Qg3 {[%clk 0:00:23.4]} 44. Rh3 {[%clk 0:00:39.3]} 44...
Qg5 {[%clk 0:00:16.6]} 45. Kg1 {[%clk 0:00:23]} 45... b4 {[%clk 0:00:16.2]} 46.
Be5 {[%clk 0:00:21.8]} 46... Re7 {[%clk 0:00:13.8]} 47. Rhe3 {[%clk 0:00:22.3]}
47... Rf7 {[%clk 0:00:13.2]} 48. Rg3 {[%clk 0:00:19]} 48... Qf5 {[%clk
0:00:12.4]} 49. Ree3 {[%clk 0:00:16.4]} 49... Qf1+ {[%clk 0:00:11.7]} 50. Kh2
{[%clk 0:00:16.7]} 50... Qf5 {[%clk 0:00:11.4]} 51. Rh3 {[%clk 0:00:14]} 51...
Re7 {[%clk 0:00:10.6]} 52. Rhf3 {[%clk 0:00:09.6]} 52... Qh5+ {[%clk 0:00:09.9]}
53. Rh3 {[%clk 0:00:10.2]} 53... Qf5 {[%clk 0:00:10.2]} 54. Rhf3 {[%clk
0:00:10.4]} 54... Qh5+ {[%clk 0:00:10.2]} 55. Rh3 {[%clk 0:00:10.9]} 55... Qf5
{[%clk 0:00:08.3]} 1/2-1/2

[Event "*** Titled Tuesday Blitz"]
[Site "Chess.com"]
[Date "2020.12.29"]
[Round "3"]
[White "Vuk2000"]
[Black "esskeettit"]
[Result "0-1"]
[WhiteElo "2808"]
[BlackElo "2467"]
[TimeControl "180+1"]
[EndTime "10:29:20 PST"]
[Termination "esskeettit won on time"]

1. d4 {[%clk 0:03:00.9]} 1... Nf6 {[%clk 0:02:48]} 2. Bg5 {[%clk 0:02:58]} 2...
e6 {[%clk 0:02:48.9]} 3. e4 {[%clk 0:02:56.6]} 3... h6 {[%clk 0:02:45.4]} 4.
Bxf6 {[%clk 0:02:56.4]} 4... Qxf6 {[%clk 0:02:45.3]} 5. c3 {[%clk 0:02:55.9]}
5... d5 {[%clk 0:02:44.8]} 6. Bd3 {[%clk 0:02:55.6]} 6... c5 {[%clk 0:02:41.5]}
7. Nf3 {[%clk 0:02:54.4]} 7... cxd4 {[%clk 0:02:40.8]} 8. cxd4 {[%clk
0:02:51.7]} 8... Nc6 {[%clk 0:02:34.1]} 9. e5 {[%clk 0:02:36.2]} 9... Qd8 {[%clk
0:02:31.5]} 10. Nc3 {[%clk 0:02:36.7]} 10... Bd7 {[%clk 0:02:24]} 11. O-O {[%clk
0:02:32.4]} 11... Qb6 {[%clk 0:02:23.7]} 12. Ne2 {[%clk 0:02:33]} 12... O-O-O
{[%clk 0:02:19.4]} 13. Qd2 {[%clk 0:02:14.2]} 13... Kb8 {[%clk 0:02:14.7]} 14.
Rfb1 {[%clk 0:01:42.8]} 14... Bb4 {[%clk 0:02:08.2]} 15. Qf4 {[%clk 0:01:36.4]}
15... Rdf8 {[%clk 0:02:02.9]} 16. a3 {[%clk 0:01:36.5]} 16... Be7 {[%clk
0:02:02.9]} 17. b4 {[%clk 0:01:36.7]} 17... Ka8 {[%clk 0:02:02.9]} 18. Qe3
{[%clk 0:01:15.6]} 18... f6 {[%clk 0:01:57]} 19. a4 {[%clk 0:00:54.4]} 19...
Nxb4 {[%clk 0:01:42.2]} 20. exf6 {[%clk 0:00:53.5]} 20... gxf6 {[%clk 0:01:35]}
21. Nh4 {[%clk 0:00:53.8]} 21... Be8 {[%clk 0:01:25.2]} 22. Nf4 {[%clk
0:00:51.1]} 22... e5 {[%clk 0:01:19.9]} 23. Nfg6 {[%clk 0:00:49.4]} 23... Bxg6
{[%clk 0:01:02.4]} 24. Nxg6 {[%clk 0:00:50.3]} 24... Bd6 {[%clk 0:01:02.9]} 25.
a5 {[%clk 0:00:36.9]} 25... Qxd4 {[%clk 0:00:27.1]} 26. Qxd4 {[%clk 0:00:37.1]}
26... exd4 {[%clk 0:00:28]} 27. Nxh8 {[%clk 0:00:37.4]} 27... Rxh8 {[%clk
0:00:28.4]} 28. Bf5 {[%clk 0:00:34]} 28... Kb8 {[%clk 0:00:17.7]} 29. Ra4 {[%clk
0:00:33.6]} 29... Nc6 {[%clk 0:00:14.1]} 30. a6 {[%clk 0:00:31.7]} 30... b6
{[%clk 0:00:14.1]} 31. Bd7 {[%clk 0:00:32.4]} 31... Ne5 {[%clk 0:00:12.9]} 32.
Bf5 {[%clk 0:00:24.5]} 32... Bc5 {[%clk 0:00:08.9]} 33. Rd1 {[%clk 0:00:18]}
33... Nc4 {[%clk 0:00:07.8]} 34. Ra2 {[%clk 0:00:15.2]} 34... Re8 {[%clk
0:00:07.1]} 35. Rc2 {[%clk 0:00:12.3]} 35... Kc7 {[%clk 0:00:05.7]} 36. g4
{[%clk 0:00:12]} 36... Kd6 {[%clk 0:00:05.9]} 37. Kg2 {[%clk 0:00:12]} 37... Ne5
{[%clk 0:00:06]} 38. h4 {[%clk 0:00:10.9]} 38... Nc4 {[%clk 0:00:05.5]} 39. Ra2
{[%clk 0:00:06.9]} 39... Re5 {[%clk 0:00:04.8]} 40. Raa1 {[%clk 0:00:06.8]}
40... Re2 {[%clk 0:00:04.7]} 41. Re1 {[%clk 0:00:06.8]} 41... Rd2 {[%clk
0:00:03.1]} 42. Re6+ {[%clk 0:00:06.2]} 42... Kc7 {[%clk 0:00:03.5]} 43. Rxf6
{[%clk 0:00:06.6]} 43... Ne3+ {[%clk 0:00:03.7]} 44. Kf3 {[%clk 0:00:05.8]}
44... Nc4 {[%clk 0:00:03.1]} 45. Rf7+ {[%clk 0:00:06.2]} 45... Kd6 {[%clk
0:00:03.1]} 46. Rd7+ {[%clk 0:00:06.1]} 46... Kc6 {[%clk 0:00:03.5]} 47. Rxa7
{[%clk 0:00:06.5]} 47... d3 {[%clk 0:00:03.6]} 48. Kg3 {[%clk 0:00:04.2]} 48...
Bxf2+ {[%clk 0:00:02.6]} 49. Kh3 {[%clk 0:00:04.7]} 49... Be3 {[%clk 0:00:02.1]}
50. Rf7 {[%clk 0:00:03.2]} 50... Kd6 {[%clk 0:00:01.1]} 0-1

[Event "*** Titled Tuesday Blitz"]
[Site "Chess.com"]
[Date "2020.12.29"]
[Round "3"]
[White "Koksal06"]
[Black "MaevskiyNikolay"]
[Result "1-0"]
[WhiteElo "2427"]
[BlackElo "2585"]
[TimeControl "180+1"]
[EndTime "10:29:20 PST"]
[Termination "Koksal06 won by checkmate"]

1. d4 {[%clk 0:03:00.9]} 1... d5 {[%clk 0:02:59.4]} 2. c4 {[%clk 0:03:01.5]}
2... Nc6 {[%clk 0:02:59.3]} 3. Nc3 {[%clk 0:03:01.1]} 3... dxc4 {[%clk
0:02:57.3]} 4. d5 {[%clk 0:03:01.6]} 4... Ne5 {[%clk 0:02:57.3]} 5. e4 {[%clk
0:03:02.2]} 5... e6 {[%clk 0:02:53]} 6. f4 {[%clk 0:02:51.5]} 6... Ng6 {[%clk
0:02:53]} 7. Bxc4 {[%clk 0:02:51.5]} 7... exd5 {[%clk 0:02:44]} 8. Qxd5 {[%clk
0:02:51.3]} 8... Be6 {[%clk 0:02:36.8]} 9. Qxd8+ {[%clk 0:02:50.1]} 9... Rxd8
{[%clk 0:02:36]} 10. Bxe6 {[%clk 0:02:50.8]} 10... fxe6 {[%clk 0:02:35.9]} 11.
Nf3 {[%clk 0:02:46.3]} 11... Bc5 {[%clk 0:02:33.2]} 12. Ke2 {[%clk 0:02:44.3]}
12... Nf6 {[%clk 0:02:30.7]} 13. g3 {[%clk 0:02:30.2]} 13... Ke7 {[%clk
0:02:15.7]} 14. Be3 {[%clk 0:02:30.3]} 14... Bxe3 {[%clk 0:02:11.4]} 15. Kxe3
{[%clk 0:02:31.2]} 15... Rd7 {[%clk 0:02:05.7]} 16. Rhd1 {[%clk 0:02:30.8]}
16... Rhd8 {[%clk 0:02:05.1]} 17. Rxd7+ {[%clk 0:02:22.3]} 17... Rxd7 {[%clk
0:02:05.2]} 18. Rd1 {[%clk 0:02:22.7]} 18... Rxd1 {[%clk 0:02:04.7]} 19. Nxd1
{[%clk 0:02:23.1]} 19... h6 {[%clk 0:01:59.8]} 20. Nc3 {[%clk 0:02:23.1]} 20...
a6 {[%clk 0:01:56.4]} 21. e5 {[%clk 0:02:23.1]} 21... Nd7 {[%clk 0:01:52.1]} 22.
Ne4 {[%clk 0:02:20.8]} 22... Kf7 {[%clk 0:01:50.5]} 23. h4 {[%clk 0:02:20.8]}
23... Ne7 {[%clk 0:01:49.2]} 24. Nc3 {[%clk 0:02:15]} 24... Nf5+ {[%clk
0:01:47.4]} 25. Kf2 {[%clk 0:02:15.6]} 25... h5 {[%clk 0:01:46.7]} 26. Ng5+
{[%clk 0:02:15.8]} 26... Ke7 {[%clk 0:01:47]} 27. Kf3 {[%clk 0:02:15.5]} 27...
c5 {[%clk 0:01:39.5]} 28. Nd1 {[%clk 0:01:59.2]} 28... b5 {[%clk 0:01:35]} 29.
Ne3 {[%clk 0:01:59.1]} 29... g6 {[%clk 0:01:26.5]} 30. Ne4 {[%clk 0:01:41.6]}
30... c4 {[%clk 0:01:22.1]} 31. Nxf5+ {[%clk 0:01:38.8]} 31... gxf5 {[%clk
0:01:21.4]} 32. Nd6 {[%clk 0:01:39.5]} 32... Nb6 {[%clk 0:01:16.9]} 33. Ke3
{[%clk 0:01:38.5]} 33... Na4 {[%clk 0:01:06.7]} 34. b3 {[%clk 0:01:38.4]} 34...
cxb3 {[%clk 0:01:05]} 35. axb3 {[%clk 0:01:39.3]} 35... Nb6 {[%clk 0:01:00.1]}
36. Kd4 {[%clk 0:01:39.2]} 36... Nd5 {[%clk 0:00:58.7]} 37. Nxf5+ {[%clk
0:01:34]} 37... Kd7 {[%clk 0:00:47.6]} 38. Ng7 {[%clk 0:01:33.9]} 38... Ne7
{[%clk 0:00:42.8]} 39. Nxh5 {[%clk 0:01:33.1]} 39... Nf5+ {[%clk 0:00:43]} 40.
Kc5 {[%clk 0:01:33.3]} 40... Kc7 {[%clk 0:00:40.5]} 41. Nf6 {[%clk 0:01:31.2]}
41... Nxg3 {[%clk 0:00:40.4]} 42. h5 {[%clk 0:01:31.8]} 42... Nf5 {[%clk
0:00:40.7]} 43. Ng4 {[%clk 0:01:29.4]} 43... Ne7 {[%clk 0:00:38.7]} 44. h6
{[%clk 0:01:27.3]} 44... Ng6 {[%clk 0:00:38.9]} 45. h7 {[%clk 0:01:27.9]} 45...
Kd7 {[%clk 0:00:39.1]} 46. Nf6+ {[%clk 0:01:27.1]} 46... Kc7 {[%clk 0:00:38.6]}
47. b4 {[%clk 0:01:22]} 47... Nh8 {[%clk 0:00:37.1]} 48. Ne4 {[%clk 0:01:19.9]}
48... Ng6 {[%clk 0:00:35.4]} 49. Ng5 {[%clk 0:01:20.5]} 49... Kd7 {[%clk
0:00:35.1]} 50. Kb6 {[%clk 0:01:20.8]} 50... Nh8 {[%clk 0:00:34.3]} 51. Kxa6
{[%clk 0:01:21]} 51... Kc6 {[%clk 0:00:34.8]} 52. Ka5 {[%clk 0:01:21.1]} 52...
Ng6 {[%clk 0:00:34]} 53. Nf3 {[%clk 0:01:21.2]} 53... Nh8 {[%clk 0:00:32.2]} 54.
Nd4+ {[%clk 0:01:21.5]} 54... Kd5 {[%clk 0:00:32.6]} 55. Nxb5 {[%clk 0:01:20.4]}
55... Ke4 {[%clk 0:00:33.1]} 56. Nc7 {[%clk 0:01:21]} 56... Kxf4 {[%clk
0:00:33.5]} 57. b5 {[%clk 0:01:21.6]} 57... Kxe5 {[%clk 0:00:33.8]} 58. b6
{[%clk 0:01:22.1]} 58... Kd6 {[%clk 0:00:34.4]} 59. Ka6 {[%clk 0:01:20.1]} 59...
Nf7 {[%clk 0:00:32.2]} 60. Nb5+ {[%clk 0:01:16.2]} 60... Kd7 {[%clk 0:00:30.7]}
61. b7 {[%clk 0:01:16.2]} 61... Ng5 {[%clk 0:00:29.7]} 62. b8=Q {[%clk 0:01:16]}
62... Nxh7 {[%clk 0:00:30.1]} 63. Qb7+ {[%clk 0:01:16.1]} 63... Ke8 {[%clk
0:00:30.5]} 64. Qxh7 {[%clk 0:01:17]} 64... e5 {[%clk 0:00:30.3]} 65. Kb6 {[%clk
0:01:17.3]} 65... e4 {[%clk 0:00:30.2]} 66. Nc3 {[%clk 0:01:17.1]} 66... e3
{[%clk 0:00:30.6]} 67. Ne2 {[%clk 0:01:17.5]} 67... Kf8 {[%clk 0:00:30.3]} 68.
Kc6 {[%clk 0:01:18]} 68... Ke8 {[%clk 0:00:31.2]} 69. Kd6 {[%clk 0:01:18.2]}
69... Kf8 {[%clk 0:00:32.1]} 70. Ke6 {[%clk 0:01:18.7]} 70... Ke8 {[%clk
0:00:33]} 71. Qc7 {[%clk 0:01:08.3]} 71... Kf8 {[%clk 0:00:31.7]} 72. Nd4 {[%clk
0:01:04]} 72... Kg8 {[%clk 0:00:29.6]} 73. Kf6 {[%clk 0:01:03.4]} 73... e2
{[%clk 0:00:27.4]} 74. Kg6 {[%clk 0:01:00.8]} 74... e1=R {[%clk 0:00:15.9]} 75.
Qf7+ {[%clk 0:00:51.1]} 75... Kh8 {[%clk 0:00:14.8]} 76. Qg7# {[%clk 0:00:51.2]}
1-0

[Event "*** Titled Tuesday Blitz"]
[Site "Chess.com"]
[Date "2020.12.29"]
[Round "3"]
[White "louis198"]
[Black "sergiochess83"]
[Result "1/2-1/2"]
[WhiteElo "2576"]
[BlackElo "2791"]
[TimeControl "180+1"]
[EndTime "10:29:21 PST"]
[Termination "Game drawn by repetition"]

1. d4 {[%clk 0:03:00.9]} 1... Nf6 {[%clk 0:02:59.4]} 2. c4 {[%clk 0:03:00.8]}
2... g6 {[%clk 0:02:55.8]} 3. Nc3 {[%clk 0:03:00.2]} 3... d5 {[%clk 0:02:56]} 4.
e3 {[%clk 0:02:59.1]} 4... Bg7 {[%clk 0:02:55.5]} 5. Nf3 {[%clk 0:02:49.7]} 5...
O-O {[%clk 0:02:53.7]} 6. h3 {[%clk 0:02:49.8]} 6... c5 {[%clk 0:02:47.8]} 7.
dxc5 {[%clk 0:02:48.6]} 7... Qa5 {[%clk 0:02:47.1]} 8. Bd2 {[%clk 0:02:47.4]}
8... dxc4 {[%clk 0:02:44.7]} 9. Bxc4 {[%clk 0:02:46.1]} 9... Qxc5 {[%clk
0:02:44.5]} 10. Qe2 {[%clk 0:02:45.5]} 10... Nc6 {[%clk 0:02:40.1]} 11. O-O
{[%clk 0:02:44.2]} 11... Qh5 {[%clk 0:01:57.6]} 12. Rfd1 {[%clk 0:02:36]} 12...
b6 {[%clk 0:01:41.3]} 13. Be1 {[%clk 0:02:29.3]} 13... Bb7 {[%clk 0:01:39.7]}
14. Nd5 {[%clk 0:02:24.5]} 14... Rad8 {[%clk 0:01:31.2]} 15. Nf4 {[%clk
0:02:23.3]} 15... Qf5 {[%clk 0:01:26.1]} 16. Bc3 {[%clk 0:01:48.8]} 16... e5
{[%clk 0:01:10.2]} 17. Nd5 {[%clk 0:01:38.2]} 17... Nxd5 {[%clk 0:01:02.2]} 18.
Bxd5 {[%clk 0:01:34]} 18... Qh5 {[%clk 0:00:31.9]} 19. e4 {[%clk 0:01:27.1]}
19... Rd7 {[%clk 0:00:30.2]} 20. Bxc6 {[%clk 0:01:22.4]} 20... Bxc6 {[%clk
0:00:28.9]} 21. Rxd7 {[%clk 0:01:16.7]} 21... Bxd7 {[%clk 0:00:29]} 22. Rd1
{[%clk 0:01:17.3]} 22... Be6 {[%clk 0:00:26.8]} 23. b3 {[%clk 0:01:12.5]} 23...
Rc8 {[%clk 0:00:26.7]} 24. Bb2 {[%clk 0:01:12.3]} 24... Bf6 {[%clk 0:00:22.7]}
25. Rc1 {[%clk 0:01:06.7]} 25... Rxc1+ {[%clk 0:00:17.6]} 26. Bxc1 {[%clk
0:01:07.6]} 26... Be7 {[%clk 0:00:17.3]} 27. Be3 {[%clk 0:01:03.2]} 27... f6
{[%clk 0:00:16.6]} 28. Kf1 {[%clk 0:00:41.3]} 28... g5 {[%clk 0:00:14.3]} 29.
Nd2 {[%clk 0:00:27.8]} 29... Qxe2+ {[%clk 0:00:14.1]} 30. Kxe2 {[%clk
0:00:27.8]} 30... Kf7 {[%clk 0:00:15]} 31. f3 {[%clk 0:00:28.1]} 31... Ke8
{[%clk 0:00:14.8]} 32. Kd3 {[%clk 0:00:28.6]} 32... Kd7 {[%clk 0:00:15.1]} 33.
Nc4 {[%clk 0:00:29]} 33... Kc6 {[%clk 0:00:15.3]} 34. a4 {[%clk 0:00:27.7]}
34... h5 {[%clk 0:00:14.6]} 35. g4 {[%clk 0:00:25.3]} 35... h4 {[%clk
0:00:14.2]} 36. Bd2 {[%clk 0:00:25.2]} 36... Bc5 {[%clk 0:00:13.6]} 37. Bc3
{[%clk 0:00:24.8]} 37... b5 {[%clk 0:00:11.1]} 38. axb5+ {[%clk 0:00:15.1]}
38... Kxb5 {[%clk 0:00:12]} 39. Nd2 {[%clk 0:00:15.8]} 39... Bb4 {[%clk
0:00:11.1]} 40. Kc2 {[%clk 0:00:13.4]} 40... a5 {[%clk 0:00:10.1]} 41. Nb1
{[%clk 0:00:11.7]} 41... Kc5 {[%clk 0:00:09.9]} 42. Bb2 {[%clk 0:00:11.8]} 42...
Bd7 {[%clk 0:00:08.6]} 43. Nc3 {[%clk 0:00:11.9]} 43... Bc6 {[%clk 0:00:07.7]}
44. Kd3 {[%clk 0:00:12.1]} 44... Bxc3 {[%clk 0:00:03.8]} 45. Bxc3 {[%clk
0:00:12.2]} 45... Bb5+ {[%clk 0:00:04.7]} 46. Ke3 {[%clk 0:00:12.4]} 46... Bf1
{[%clk 0:00:04.6]} 47. Bxa5 {[%clk 0:00:11.8]} 47... Kd6 {[%clk 0:00:02.4]} 48.
Bd8 {[%clk 0:00:10.8]} 48... Ke6 {[%clk 0:00:02.8]} 49. b4 {[%clk 0:00:11.4]}
49... Bb5 {[%clk 0:00:02.8]} 50. Bb6 {[%clk 0:00:10.3]} 50... Kf7 {[%clk
0:00:03]} 51. Kf2 {[%clk 0:00:10.6]} 51... Ke6 {[%clk 0:00:03.5]} 52. Bd8 {[%clk
0:00:10.7]} 52... Kf7 {[%clk 0:00:03.9]} 53. Bb6 {[%clk 0:00:11.3]} 53... Ke6
{[%clk 0:00:04.5]} 54. Bd8 {[%clk 0:00:11.2]} 54... Kf7 {[%clk 0:00:04.9]} 55.
Bb6 {[%clk 0:00:11.7]} 1/2-1/2

[Event "*** Titled Tuesday Blitz"]
[Site "Chess.com"]
[Date "2020.12.29"]
[Round "3"]
[White "garicradomir"]
[Black "Snowflake"]
[Result "1-0"]
[WhiteElo "2283"]
[BlackElo "2445"]
[TimeControl "180+1"]
[EndTime "10:29:21 PST"]
[Termination "garicradomir won by checkmate"]

1. e4 {[%clk 0:03:00.9]} 1... e5 {[%clk 0:02:44.9]} 2. Nf3 {[%clk 0:02:58.7]}
2... d6 {[%clk 0:02:45.3]} 3. d4 {[%clk 0:02:57]} 3... exd4 {[%clk 0:02:46.2]}
4. Nxd4 {[%clk 0:02:54.7]} 4... Nf6 {[%clk 0:02:46.3]} 5. Nc3 {[%clk 0:02:54]}
5... g6 {[%clk 0:02:46.6]} 6. Bf4 {[%clk 0:02:51.5]} 6... Bg7 {[%clk 0:02:46.4]}
7. Qd2 {[%clk 0:02:50.4]} 7... O-O {[%clk 0:02:45.9]} 8. f3 {[%clk 0:02:46.5]}
8... a6 {[%clk 0:02:41.1]} 9. Bh6 {[%clk 0:02:45.5]} 9... b5 {[%clk 0:02:39.4]}
10. Bxg7 {[%clk 0:02:44.2]} 10... Kxg7 {[%clk 0:02:40.3]} 11. O-O-O {[%clk
0:02:41.6]} 11... b4 {[%clk 0:02:36.2]} 12. Nd5 {[%clk 0:02:40.6]} 12... c5
{[%clk 0:02:31.8]} 13. Nf5+ {[%clk 0:02:35.7]} 13... Bxf5 {[%clk 0:02:29.6]} 14.
exf5 {[%clk 0:02:35.5]} 14... Nc6 {[%clk 0:02:14.4]} 15. Nxf6 {[%clk 0:02:29.5]}
15... Qxf6 {[%clk 0:02:15.3]} 16. Qxd6 {[%clk 0:02:29.7]} 16... Rfd8 {[%clk
0:01:25.7]} 17. Qxf6+ {[%clk 0:02:27.8]} 17... Kxf6 {[%clk 0:01:26.6]} 18. Rxd8
{[%clk 0:02:26.8]} 18... Nxd8 {[%clk 0:01:24.1]} 19. fxg6 {[%clk 0:02:25.9]}
19... fxg6 {[%clk 0:01:25]} 20. Bc4 {[%clk 0:02:19.7]} 20... Nc6 {[%clk
0:01:24.9]} 21. Bd5 {[%clk 0:02:10.5]} 21... Rc8 {[%clk 0:01:24.9]} 22. Bxc6
{[%clk 0:02:09.6]} 22... Rxc6 {[%clk 0:01:25.8]} 23. Re1 {[%clk 0:02:08.1]}
23... a5 {[%clk 0:01:24.8]} 24. Re4 {[%clk 0:01:59.6]} 24... g5 {[%clk 0:01:16]}
25. Kd2 {[%clk 0:01:54.5]} 25... h5 {[%clk 0:01:15.4]} 26. Ke2 {[%clk
0:01:51.2]} 26... Rd6 {[%clk 0:01:12.4]} 27. h4 {[%clk 0:01:46.7]} 27... Rd5
{[%clk 0:01:05.9]} 28. hxg5+ {[%clk 0:01:40.3]} 28... Kxg5 {[%clk 0:01:06.8]}
29. g3 {[%clk 0:01:36.9]} 29... Kf5 {[%clk 0:00:53.8]} 30. Rc4 {[%clk
0:01:31.7]} 30... Re5+ {[%clk 0:00:48.1]} 31. Kf2 {[%clk 0:01:31.1]} 31... Rd5
{[%clk 0:00:48]} 32. Ke3 {[%clk 0:01:19.2]} 32... Re5+ {[%clk 0:00:48.2]} 33.
Re4 {[%clk 0:01:19.6]} 33... Rd5 {[%clk 0:00:48.7]} 34. g4+ {[%clk 0:01:13.1]}
34... hxg4 {[%clk 0:00:48]} 35. Rxg4 {[%clk 0:01:13.6]} 35... Rd1 {[%clk
0:00:44.2]} 36. Rc4 {[%clk 0:01:09.7]} 36... Re1+ {[%clk 0:00:41.9]} 37. Kd3
{[%clk 0:01:03.7]} 37... Re5 {[%clk 0:00:40.5]} 38. Rh4 {[%clk 0:01:01.7]} 38...
Rd5+ {[%clk 0:00:40.5]} 39. Ke3 {[%clk 0:00:51.4]} 39... Re5+ {[%clk 0:00:39.7]}
40. Kf2 {[%clk 0:00:50.9]} 40... Kg5 {[%clk 0:00:14.3]} 41. f4+ {[%clk
0:00:38.6]} 41... Kxh4 {[%clk 0:00:14.2]} 42. fxe5 {[%clk 0:00:38.5]} 42... Kg5
{[%clk 0:00:15.1]} 43. Ke3 {[%clk 0:00:38.1]} 43... Kf5 {[%clk 0:00:15.1]} 44.
Kd3 {[%clk 0:00:38.2]} 44... Kxe5 {[%clk 0:00:11.7]} 45. Kc4 {[%clk 0:00:38]}
45... Kd6 {[%clk 0:00:01.9]} 46. Kb5 {[%clk 0:00:31.5]} 46... a4 {[%clk
0:00:02.4]} 47. Kxa4 {[%clk 0:00:29.2]} 47... Kd5 {[%clk 0:00:03.3]} 48. Kb5
{[%clk 0:00:17.5]} 48... Kd4 {[%clk 0:00:02.4]} 49. b3 {[%clk 0:00:14.5]} 49...
Kc3 {[%clk 0:00:02]} 50. Kxc5 {[%clk 0:00:14]} 50... Kxc2 {[%clk 0:00:01.8]} 51.
Kxb4 {[%clk 0:00:13.8]} 51... Kb2 {[%clk 0:00:02.7]} 52. a4 {[%clk 0:00:14]}
52... Ka1 {[%clk 0:00:03.6]} 53. a5 {[%clk 0:00:14.5]} 53... Kb2 {[%clk
0:00:04.5]} 54. a6 {[%clk 0:00:15.4]} 54... Ka1 {[%clk 0:00:05.4]} 55. a7 {[%clk
0:00:16.3]} 55... Kb2 {[%clk 0:00:06.3]} 56. a8=Q {[%clk 0:00:16.8]} 56... Kb1
{[%clk 0:00:06.4]} 57. Qg2 {[%clk 0:00:16.6]} 57... Kc1 {[%clk 0:00:05.1]} 58.
Kc3 {[%clk 0:00:15.7]} 58... Kd1 {[%clk 0:00:06]} 59. Qd2# {[%clk 0:00:15.2]}
1-0